bitfinex-derivatives/quotes_BTCF0:USTF0_20250517
["timestamp","ask_amount","ask_price","bid_price","bid_amount"]
[1747457395537,0.0665,103520.0,103510.0,1.40482513]
[1747457395743,0.0665,103520.0,103510.0,1.46753989]
[1747457396844,0.1337,103520.0,103510.0,1.46753989]
[1747457398639,0.1952,103520.0,103510.0,1.46753989]
[1747457400339,0.1952,103520.0,103510.0,1.46209773]
[1747457406949,0.1952,103520.0,103510.0,1.10117773]
[1747457407451,0.3883326,103520.0,103510.0,1.10117773]
[1747457407659,0.3883326,103520.0,103510.0,1.03927773]
[1747457407861,0.3883326,103520.0,103510.0,0.62235773]
[1747457408363,0.3883326,103520.0,103510.0,1.03915773]
[1747457411359,0.1952,103520.0,103510.0,1.39995773]
[1747457411563,0.1952,103520.0,103510.0,1.46569989]
[1747457411866,0.0665,103520.0,103510.0,1.52841465]
[1747457412064,0.0665,103520.0,103510.0,1.50945698]
[1747457412962,0.0665,103520.0,103510.0,1.51145698]
[1747457413166,0.1306,103520.0,103510.0,1.51145698]
[1747457413465,0.1951,103520.0,103510.0,1.51345698]
[1747457413763,0.1951,103520.0,103510.0,1.61337547]
[1747457414566,0.1951,103520.0,103510.0,1.61881763]
[1747457415364,0.1951,103520.0,103510.0,1.25801763]
[1747457415568,0.1951,103520.0,103510.0,2.39107547]
[1747457415866,0.1951,103520.0,103510.0,2.42795517]
[1747457416667,0.1951,103520.0,103510.0,2.43339733]
[1747457417566,0.1951,103520.0,103510.0,2.42795517]
[1747457417858,0.1951,103520.0,103510.0,2.06715517]
[1747457418165,0.1951,103520.0,103510.0,2.42795517]
[1747457419263,0.1951,103520.0,103510.0,1.70635517]
[1747457419466,0.1951,103520.0,103510.0,2.42795517]
[1747457420667,0.1951,103520.0,103510.0,2.43339733]
[1747457421662,0.1951,103520.0,103510.0,2.42795517]
[1747457422667,0.1951,103520.0,103510.0,2.43339733]
[1747457423869,0.1951,103520.0,103510.0,3.52879733]
[1747457427671,0.29172,103520.0,103510.0,3.52879733]
[1747457432478,0.29172,103520.0,103510.0,3.11199733]
[1747457432682,0.29172,103520.0,103510.0,3.32027733]
[1747457432977,0.29172,103520.0,103510.0,3.52311517]
[1747457433885,0.29172,103520.0,103510.0,3.52855733]
[1747457434883,0.29172,103520.0,103510.0,3.32027733]
[1747457435179,0.29172,103520.0,103510.0,3.46584257]
[1747457435381,0.29172,103520.0,103510.0,3.52855733]
[1747457435686,0.29172,103520.0,103510.0,3.46584257]
[1747457435875,0.29172,103520.0,103510.0,3.52311517]
[1747457436277,0.29172,103520.0,103510.0,3.31483517]
[1747457436473,0.29172,103520.0,103510.0,3.52311517]
[1747457436783,0.29172,103520.0,103510.0,3.46281517]
[1747457438276,0.29172,103520.0,103510.0,2.74121517]
[1747457438476,0.29172,103520.0,103510.0,3.46281517]
[1747457438986,0.29172,103520.0,103510.0,3.46825733]
[1747457439884,0.29172,103520.0,103510.0,3.46281517]
[1747457440085,0.29172,103520.0,103510.0,2.74121517]
[1747457440386,0.29172,103520.0,103510.0,3.46281517]
[1747457440580,0.29172,103520.0,103510.0,3.04625517]
[1747457440882,0.29172,103520.0,103510.0,3.46277517]
[1747457443083,0.29172,103520.0,103510.0,3.46821733]
[1747457444679,0.29172,103520.0,103510.0,3.53311733]
[1747457445077,0.29172,103520.0,103510.0,3.48793604]
[1747457445582,0.29172,103520.0,103510.0,3.64725515]
[1747457445778,0.12052301,103540.0,103530.0,0.1931139]
[1747457445983,0.18452301,103540.0,103530.0,1.07686575]
[1747457446284,0.18452301,103540.0,103530.0,1.14036575]
[1747457446483,0.18452301,103540.0,103530.0,1.09660866]
[1747457447074,0.18652301,103540.0,103530.0,1.14070637]
[1747457447885,0.18852301,103540.0,103530.0,1.14070637]
[1747457448683,0.068,103540.0,103530.0,1.14070637]
[1747457448884,0.068,103540.0,103530.0,1.01449161]
[1747457449071,0.1905,103540.0,103530.0,0.66072637]
[1747457449273,0.3835953,103540.0,103530.0,1.07720637]
[1747457449480,0.3835953,103540.0,103530.0,0.71640637]
[1747457449686,0.1905,103540.0,103530.0,0.71640637]
[1747457451087,0.1905,103540.0,103530.0,0.72184853]
[1747457455288,0.1905,103540.0,103530.0,0.72073377]
[1747457455481,0.1905,103540.0,103530.0,0.78344853]
[1747457456590,0.31102301,103540.0,103530.0,0.78344853]
[1747457457184,0.31102301,103540.0,103530.0,0.68683853]
[1747457457892,0.31102301,103540.0,103530.0,0.62412377]
[1747457458091,0.31102301,103540.0,103530.0,0.68683853]
[1747457458391,0.31102301,103540.0,103530.0,0.86683853]
[1747457459687,0.31102301,103540.0,103530.0,1.22763853]
[1747457460194,0.1905,103540.0,103530.0,1.13102853]
[1747457460391,0.1905,103540.0,103530.0,1.38874243]
[1747457460591,0.1905,103540.0,103530.0,1.45184243]
[1747457461197,0.1309,103540.0,103530.0,1.35524243]
[1747457461390,0.0669,103540.0,103530.0,1.35524243]
[1747457461584,0.0669,103540.0,103530.0,1.51902088]
[1747457461585,0.004,103540.0,103530.0,1.51902088]
[1747457461796,0.004,103540.0,103530.0,1.61560657]
[1747457461989,0.0617,103540.0,103530.0,1.61560657]
[1747457462193,0.0617,103540.0,103530.0,1.61016441]
[1747457462794,0.37012922,103550.0,103540.0,0.0965053]
[1747457462997,0.36062922,103550.0,103540.0,0.75943482]
[1747457463186,0.39771922,103550.0,103540.0,0.98321327]
[1747457463391,0.34261922,103550.0,103540.0,0.98321327]
[1747457464002,0.09659,103550.0,103540.0,1.08864116]
[1747457464189,0.09659,103550.0,103540.0,1.09264116]
[1747457464493,0.09659,103550.0,103540.0,1.18921752]
[1747457465495,0.09659,103550.0,103540.0,1.22609722]
[1747457465696,0.15609,103550.0,103540.0,1.22609722]
[1747457465898,0.15609,103550.0,103540.0,1.18231877]
[1747457466393,0.15609,103550.0,103540.0,1.59921877]
[1747457466995,0.15609,103550.0,103540.0,1.23841877]
[1747457467188,0.15609,103550.0,103540.0,1.96001877]
[1747457467388,0.15609,103550.0,103540.0,2.00368234]
[1747457467891,0.15609,103550.0,103540.0,1.83458925]
[1747457468088,0.26939,103550.0,103540.0,1.94605289]
[1747457468290,0.26939,103550.0,103540.0,1.68344241]
[1747457468490,0.26939,103550.0,103540.0,2.09956241]
[1747457469198,0.26939,103550.0,103540.0,2.27956241]
[1747457471101,0.26939,103550.0,103540.0,2.21938305]
[1747457472001,0.26939,103550.0,103540.0,2.18250335]
[1747457473104,0.26939,103550.0,103540.0,2.00250335]
[1747457473309,0.26939,103550.0,103540.0,2.04612785]
[1747457473806,0.26939,103550.0,103540.0,2.00250335]
[1747457474102,0.26939,103550.0,103540.0,2.22639524]
[1747457474406,0.26939,103550.0,103540.0,2.27001752]
[1747457475005,0.26939,103550.0,103540.0,2.22639524]
[1747457476097,0.26939,103550.0,103540.0,2.04639524]
[1747457477312,0.23861043,103550.0,103540.0,2.04639524]
[1747457478208,0.23861043,103550.0,103540.0,2.22639524]
[1747457481208,0.23861043,103550.0,103540.0,2.04639524]
[1747457482908,0.23861043,103550.0,103540.0,1.32479524]
[1747457483112,0.23861043,103550.0,103540.0,2.22639524]
[1747457484212,0.23861043,103550.0,103540.0,2.04623524]
[1747457484712,0.23861043,103550.0,103540.0,1.63027524]
[1747457485108,0.23861043,103550.0,103540.0,2.04623524]
[1747457485809,0.23861043,103550.0,103540.0,1.98352048]
[1747457486112,0.23861043,103550.0,103540.0,2.16352048]
[1747457486309,0.23861043,103550.0,103540.0,2.2071725]
[1747457486912,0.23861043,103550.0,103540.0,2.16352048]
[1747457487110,0.23861043,103550.0,103540.0,1.98352048]
[1747457488617,0.23861043,103550.0,103540.0,2.04369984]
[1747457489616,0.23861043,103550.0,103540.0,2.08738109]
[1747457489915,0.23861043,103550.0,103540.0,2.04369984]
[1747457490609,0.23861043,103550.0,103540.0,2.12426088]
[1747457492920,0.23861043,103550.0,103540.0,2.16891575]
[1747457493322,0.23861043,103550.0,103540.0,2.23163051]
[1747457493620,0.23861043,103550.0,103540.0,1.81473051]
[1747457494418,0.23861043,103550.0,103540.0,1.77785081]
[1747457495915,0.23861043,103550.0,103540.0,1.05625081]
[1747457496216,0.23861043,103550.0,103540.0,1.77785081]
[1747457496423,0.23861043,103550.0,103540.0,2.19475081]
[1747457496924,0.23861043,103550.0,103540.0,1.47315081]
[1747457497315,0.23861043,103550.0,103540.0,2.19475081]
[1747457497523,0.23861043,103550.0,103540.0,3.28979081]
[1747457498627,0.23861043,103550.0,103540.0,3.33881737]
[1747457498823,0.23861043,103550.0,103540.0,2.61721737]
[1747457499033,0.23861043,103550.0,103540.0,3.33857737]
[1747457499322,0.23861043,103550.0,103540.0,2.68344261]
[1747457499530,0.23861043,103550.0,103540.0,2.68226261]
[1747457499830,0.23861043,103550.0,103540.0,2.63761543]
[1747457500027,0.43168713,103550.0,103540.0,2.36706067]
[1747457500228,0.23861043,103550.0,103540.0,2.63761543]
[1747457501231,0.41861043,103550.0,103540.0,2.63761543]
[1747457501431,0.41861043,103550.0,103540.0,1.91601543]
[1747457501633,0.41861043,103550.0,103540.0,1.87233409]
[1747457502133,0.23861043,103550.0,103540.0,1.87233409]
[1747457502433,0.43168723,103550.0,103540.0,1.76059277]
[1747457502634,0.23861043,103550.0,103540.0,1.24836747]
[1747457502825,0.79248723,103550.0,103540.0,1.85718287]
[1747457503134,0.97248723,103550.0,103540.0,1.85718287]
[1747457503330,0.97248723,103550.0,103540.0,1.75170729]
[1747457504229,0.97248723,103550.0,103540.0,1.33602729]
[1747457504432,0.97248723,103550.0,103540.0,1.75170729]
[1747457509124,1.03520199,103550.0,103540.0,1.35081189]
[1747457509325,0.96939156,103550.0,103540.0,1.68589729]
[1747457509527,0.9066768,103550.0,103540.0,1.68589729]
[1747457509725,0.9066768,103550.0,103540.0,1.74861205]
[1747457509934,0.9066768,103550.0,103540.0,1.33293205]
[1747457510232,0.9066768,103550.0,103540.0,1.74861205]
[1747457511332,0.9066768,103550.0,103540.0,1.68589729]
[1747457511933,0.5458768,103550.0,103540.0,1.68589729]
[1747457512134,0.9066768,103550.0,103540.0,1.68589729]
[1747457516235,0.7266768,103550.0,103540.0,1.68589729]
[1747457516438,0.7266768,103550.0,103540.0,1.74861205]
[1747457517335,0.7266768,103550.0,103540.0,1.80161205]
[1747457518131,0.9066768,103550.0,103540.0,0.72449016]
[1747457518526,0.5458768,103550.0,103540.0,0.72449016]
[1747457518727,0.5458768,103550.0,103540.0,0.30881016]
[1747457518928,0.5458768,103550.0,103540.0,0.72449016]
[1747457519231,0.3658768,103550.0,103540.0,0.72449016]
[1747457519931,0.48639981,103550.0,103540.0,0.72449016]
[1747457520328,0.84719981,103550.0,103540.0,0.6617754]
[1747457520639,0.84719981,103550.0,103540.0,0.72449016]
[1747457523445,0.7266768,103550.0,103540.0,0.72449016]
[1747457524346,0.7266768,103550.0,103540.0,0.77539016]
[1747457527051,0.7266768,103550.0,103540.0,0.82609016]
[1747457527639,0.3658768,103550.0,103540.0,0.82609016]
[1747457527843,0.7266768,103550.0,103540.0,0.82609016]
[1747457528549,0.7266768,103550.0,103540.0,0.61833016]
[1747457528751,0.78939156,103550.0,103540.0,0.053]
[1747457529045,0.7266768,103550.0,103540.0,0.6615354]
[1747457529245,0.5336,103550.0,103540.0,0.72425016]
[1747457529547,0.7266767,103550.0,103540.0,0.82445016]
[1747457529941,0.7266767,103550.0,103540.0,0.61673016]
[1747457530148,0.7266767,103550.0,103540.0,0.77375016]
[1747457530348,0.7266767,103550.0,103540.0,0.72425016]
[1747457530649,0.7266767,103550.0,103540.0,0.6615354]
[1747457530848,0.90991447,103550.0,103540.0,0.4684]
[1747457531238,1.08991447,103550.0,103540.0,0.5118954]
[1747457533039,1.08991447,103550.0,103540.0,0.5637954]
[1747457534845,1.08991447,103550.0,103540.0,0.60722657]
[1747457536250,0.90991447,103550.0,103540.0,0.60722657]
[1747457536551,0.90991447,103550.0,103540.0,0.5637954]
[1747457537045,0.90991447,103550.0,103540.0,0.3707]
[1747457537855,0.84719971,103550.0,103540.0,0.5637954]
[1747457538146,0.84719971,103550.0,103540.0,0.62651016]
[1747457538354,0.23542301,103550.0,103540.0,0.78932492]
[1747457538945,0.2525768,103550.0,103540.0,0.78932492]
[1747457539252,0.31293009,103560.0,103550.0,0.1930768]
[1747457539443,0.55319319,103560.0,103550.0,0.76759156]
[1747457539644,0.55319319,103560.0,103550.0,0.40679156]
[1747457540249,0.55319319,103560.0,103550.0,0.31019156]
[1747457541756,0.67478586,103560.0,103550.0,0.35365599]
[1747457542562,0.62378586,103560.0,103550.0,0.35365599]
[1747457542745,0.43072276,103560.0,103550.0,0.35365599]
[1747457543157,0.43072276,103560.0,103550.0,0.53365599]
[1747457543456,0.62378086,103560.0,103550.0,0.89445599]
[1747457543858,0.25943009,103560.0,103550.0,0.89445599]
[1747457544245,0.25943009,103560.0,103550.0,0.79786599]
[1747457544646,0.21223009,103560.0,103550.0,0.99094279]
[1747457545359,0.21223009,103560.0,103550.0,0.89435279]
[1747457546152,0.31303009,103560.0,103550.0,0.89435279]
[1747457546457,0.31303009,103560.0,103550.0,0.79777279]
[1747457547357,0.31303009,103560.0,103550.0,0.81257854]
[1747457547554,0.1038,103560.0,103550.0,0.81257854]
[1747457549259,0.1038,103560.0,103550.0,1.02013854]
[1747457549457,0.1551,103560.0,103550.0,1.06903854]
[1747457552354,0.1551,103560.0,103550.0,0.70823854]
[1747457552560,0.1551,103560.0,103550.0,1.06903854]
[1747457553169,0.1551,103560.0,103550.0,0.88903854]
[1747457555967,0.1551,103560.0,103550.0,0.52823854]
[1747457556173,0.1551,103560.0,103550.0,0.88903854]
[1747457557270,0.1551,103560.0,103550.0,0.8551733]
[1747457560165,0.1551,103560.0,103550.0,0.4943733]
[1747457561065,0.1551,103560.0,103550.0,0.8551733]
[1747457561973,0.1551,103560.0,103550.0,0.4943733]
[1747457562172,0.1551,103560.0,103550.0,0.8551733]
[1747457562570,0.16054216,103560.0,103550.0,0.8551733]
[1747457563377,0.16054216,103560.0,103550.0,0.79245854]
[1747457563569,0.16054216,103560.0,103550.0,0.8551733]
[1747457564571,0.16054216,103560.0,103550.0,0.6476133]
[1747457564871,0.16054216,103560.0,103550.0,1.0626133]
[1747457567176,0.16054216,103560.0,103550.0,0.90222051]
[1747457567473,0.16054216,103560.0,103550.0,1.09529731]
[1747457568175,0.16054216,103560.0,103550.0,1.14055353]
[1747457570676,0.1551,103560.0,103550.0,1.14055353]
[1747457571680,0.1551,103560.0,103550.0,1.07783877]
[1747457571875,0.1551,103560.0,103550.0,1.14055353]
[1747457573777,0.16054216,103560.0,103550.0,0.72555353]
[1747457573982,0.16054216,103560.0,103550.0,1.14051353]
[1747457574481,0.16054216,103560.0,103550.0,1.09161353]
[1747457576278,0.35360026,103560.0,103550.0,0.92792499]
[1747457576486,0.16054216,103560.0,103550.0,1.13532499]
[1747457577184,0.16054216,103560.0,103550.0,1.03874499]
[1747457577377,0.16054216,103560.0,103550.0,1.06474499]
[1747457578283,0.16054216,103560.0,103550.0,1.10164674]
[1747457579282,0.16054216,103560.0,103550.0,1.24164674]
[1747457581382,0.16054216,103560.0,103550.0,1.2561935]
[1747457583888,0.1551,103560.0,103550.0,1.2561935]
[1747457586081,0.1551,103560.0,103550.0,1.0487935]
[1747457586393,0.1551,103560.0,103550.0,1.2561535]
[1747457586588,0.1551,103560.0,103550.0,1.2559935]
[1747457588300,0.1551,103560.0,103550.0,1.33776775]
[1747457590097,0.1551,103560.0,103550.0,1.27505299]
[1747457590396,0.1551,103560.0,103550.0,1.33776775]
[1747457596500,0.1551,103560.0,103550.0,1.33772775]
[1747457598301,0.1551,103560.0,103550.0,1.17843299]
[1747457598496,0.1551,103560.0,103550.0,1.24114775]
[1747457601603,0.1551,103560.0,103550.0,1.60194775]
[1747457602401,0.1551,103560.0,103550.0,1.66212711]
[1747457602604,0.1551,103560.0,103550.0,0.94052711]
[1747457602794,0.1551,103560.0,103550.0,1.66212711]
[1747457602995,0.1551,103560.0,103550.0,0.94052711]
[1747457603195,0.1551,103560.0,103550.0,1.66212711]
[1747457604607,0.1551,103560.0,103550.0,0.94052711]
[1747457604802,0.1551,103560.0,103550.0,1.66212711]
[1747457607306,0.1551,103560.0,103550.0,1.45480711]
[1747457607512,0.1551,103560.0,103550.0,1.64365943]
[1747457607711,0.1551,103560.0,103550.0,1.22901943]
[1747457607904,0.1551,103560.0,103550.0,1.64365943]
[1747457608209,0.1551,103560.0,103550.0,1.54707943]
[1747457609104,0.1551,103560.0,103550.0,1.18627943]
[1747457609805,0.1551,103560.0,103550.0,0.82547943]
[1747457610010,0.1551,103560.0,103550.0,1.18627943]
[1747457610808,0.1551,103560.0,103550.0,0.91628467]
[1747457611006,0.1551,103560.0,103550.0,1.18623943]
[1747457611419,0.41087286,103560.0,103550.0,0.47516292]
[1747457611714,0.41087286,103560.0,103550.0,0.68240292]
[1747457611909,0.3481581,103560.0,103550.0,0.68240292]
[1747457612109,0.5281581,103560.0,103550.0,0.68240292]
[1747457612410,0.5281581,103560.0,103550.0,0.68536292]
[1747457612713,0.5281581,103560.0,103550.0,0.62518356]
[1747457613307,0.5281581,103560.0,103550.0,0.52860356]
[1747457614215,0.3481581,103560.0,103550.0,0.52860356]
[1747457614416,0.41087286,103560.0,103550.0,0.54261564]
[1747457614712,0.77167286,103560.0,103550.0,0.54261564]
[1747457614915,0.77167286,103560.0,103550.0,0.54525564]
[1747457615214,0.95167286,103560.0,103550.0,0.43421208]
[1747457615414,0.95167286,103560.0,103550.0,0.62728888]
[1747457615616,0.59087286,103560.0,103550.0,0.62728888]
[1747457615813,0.71146553,103560.0,103550.0,0.62728888]
[1747457616420,0.64875077,103560.0,103550.0,0.62728888]
[1747457619314,0.5281581,103560.0,103550.0,0.62728888]
[1747457619518,0.59087286,103560.0,103550.0,0.22421208]
[1747457619816,0.59087286,103560.0,103550.0,0.62688888]
[1747457620219,0.59087286,103560.0,103550.0,0.53029888]
[1747457620422,0.41087286,103560.0,103550.0,0.53029888]
[1747457620822,0.3481581,103560.0,103550.0,0.53029888]
[1747457622118,0.096545,103550.0,103530.0,0.46399862]
[1747457622419,0.13979,103540.0,103530.0,1.34086528]
[1747457622612,0.22399,103540.0,103530.0,1.34086528]
[1747457622924,0.22399,103540.0,103530.0,1.28068592]
[1747457623123,0.22399,103540.0,103530.0,1.46068592]
[1747457623510,0.22399,103540.0,103530.0,1.42370812]
[1747457624015,0.22399,103540.0,103530.0,1.4660156]
[1747457624219,0.22399,103540.0,103530.0,1.2860156]
[1747457624413,0.22399,103540.0,103530.0,1.2880156]
[1747457624918,0.22399,103540.0,103530.0,1.2890156]
[1747457625122,0.22399,103540.0,103530.0,1.53173036]
[1747457625317,0.22399,103540.0,103530.0,1.22501436]
[1747457625526,0.01636385,103560.0,103550.0,0.1930768]
[1747457625818,0.01636385,103560.0,103550.0,1.08945156]
[1747457626221,0.01636385,103560.0,103550.0,0.99286156]
[1747457626619,0.01736385,103560.0,103550.0,0.99286156]
[1747457626811,0.01736385,103560.0,103550.0,1.03516904]
[1747457627012,0.01736385,103560.0,103550.0,1.03710038]
[1747457627221,0.01736385,103560.0,103550.0,0.94051038]
[1747457627420,0.01736385,103560.0,103550.0,1.17793956]
[1747457627722,0.01736385,103560.0,103550.0,1.14928282]
[1747457628319,0.01736385,103560.0,103550.0,1.05270282]
[1747457628823,0.01736385,103560.0,103550.0,1.05234282]
[1747457629323,0.001,103560.0,103550.0,1.05226282]
[1747457630624,0.1203,103560.0,103550.0,1.05226282]
[1747457631417,0.1203,103560.0,103550.0,1.13526282]
[1747457633525,0.12574216,103560.0,103550.0,1.13526282]
[1747457634523,0.1203,103560.0,103550.0,1.13526282]
[1747457634923,0.1203,103560.0,103550.0,1.18384602]
[1747457635526,0.12574216,103560.0,103550.0,1.18384602]
[1747457635826,0.12574216,103560.0,103550.0,0.82304602]
[1747457636027,0.12574216,103560.0,103550.0,1.18384602]
[1747457636227,0.12574216,103560.0,103550.0,1.18308602]
[1747457636820,0.12574216,103560.0,103550.0,0.82228602]
[1747457637227,0.12574216,103560.0,103550.0,1.18308602]
[1747457637523,0.1203,103560.0,103550.0,1.18308602]
[1747457639223,0.1203,103560.0,103550.0,1.08650602]
[1747457639723,0.1223,103560.0,103550.0,1.08650602]
[1747457643039,0.1223,103560.0,103550.0,0.72570602]
[1747457643236,0.1223,103560.0,103550.0,1.08650602]
[1747457644145,0.1223,103560.0,103550.0,0.72570602]
[1747457644439,0.1223,103560.0,103550.0,1.08650602]
[1747457644937,0.1223,103560.0,103550.0,1.02379126]
[1747457645138,0.1223,103560.0,103550.0,1.08650602]
[1747457645938,0.1223,103560.0,103550.0,0.66294602]
[1747457646133,0.1223,103560.0,103550.0,1.08906602]
[1747457646636,0.12774216,103560.0,103550.0,1.08906602]
[1747457646835,0.12774216,103560.0,103550.0,0.77061126]
[1747457647040,0.12774216,103560.0,103550.0,1.04628602]
[1747457648339,0.12774216,103560.0,103550.0,1.08438602]
[1747457649636,0.12774216,103560.0,103550.0,1.02167126]
[1747457649832,0.1223,103560.0,103550.0,1.08438602]
[1747457650328,0.1223,103560.0,103550.0,1.1367272]
[1747457651038,0.1223,103560.0,103550.0,0.7759272]
[1747457651239,0.1223,103560.0,103550.0,0.7378272]
[1747457651738,0.1223,103560.0,103550.0,0.7380272]
[1747457652127,0.1223,103560.0,103550.0,0.3117872]
[1747457652334,0.1223,103560.0,103550.0,0.7379472]
[1747457652735,0.12774216,103560.0,103550.0,0.7379472]
[1747457653139,0.12774216,103560.0,103550.0,1.0987472]
[1747457654543,0.12774216,103560.0,103550.0,0.78265244]
[1747457654745,0.48854216,103560.0,103550.0,0.63465244]
[1747457654946,0.12774216,103560.0,103550.0,0.63465244]
[1747457655146,0.66854216,103560.0,103550.0,0.63465244]
[1747457655334,0.66854216,103560.0,103550.0,0.20877244]
[1747457655534,0.66854216,103560.0,103550.0,0.63457244]
[1747457655735,0.86160026,103560.0,103550.0,0.42185244]
[1747457655937,0.86160026,103560.0,103550.0,0.63453244]
[1747457656140,0.68160026,103560.0,103550.0,0.63453244]
[1747457656746,0.6761581,103560.0,103550.0,0.63453244]
[1747457657041,0.8561581,103560.0,103550.0,0.63453244]
[1747457658247,0.6761581,103560.0,103550.0,0.63453244]
[1747457659644,0.4831,103560.0,103550.0,0.63453244]
[1747457659948,0.48854216,103560.0,103550.0,0.63453244]
[1747457660342,0.48854216,103560.0,103550.0,0.67794118]
[1747457660541,0.68160026,103560.0,103550.0,0.67794118]
[1747457660946,0.6761581,103560.0,103550.0,0.63429244]
[1747457661346,0.4831,103560.0,103550.0,0.53771244]
[1747457663850,0.4831,103560.0,103550.0,0.6004272]
[1747457664053,0.1223,103560.0,103550.0,0.9612272]
[1747457664254,0.1223,103560.0,103550.0,0.9988272]
[1747457665353,0.1223,103560.0,103550.0,1.01319851]
[1747457665952,0.1223,103560.0,103550.0,1.05129851]
[1747457666766,0.1223,103560.0,103550.0,1.09469886]
[1747457667768,0.1223,103560.0,103550.0,1.1399473]
[1747457668464,0.1223,103560.0,103550.0,1.1780473]
[1747457672280,0.1223,103560.0,103550.0,1.06585486]
[1747457672574,0.1223,103560.0,103550.0,1.15281655]
[1747457672776,0.1223,103560.0,103550.0,1.21553131]
[1747457673463,0.1223,103560.0,103550.0,0.85473131]
[1747457673669,0.1223,103560.0,103550.0,1.21553131]
[1747457675180,0.1223,103560.0,103550.0,0.85473131]
[1747457675378,0.1223,103560.0,103550.0,1.21553131]
[1747457675779,0.1223,103560.0,103550.0,1.17743131]
[1747457676480,0.1223,103560.0,103550.0,1.21473131]
[1747457680987,0.37807286,103560.0,103550.0,0.50337655]
[1747457681178,0.91887286,103560.0,103550.0,0.46577655]
[1747457681378,0.55807286,103560.0,103550.0,0.25269655]
[1747457681580,0.4953581,103560.0,103550.0,0.67953655]
[1747457681785,0.8561581,103560.0,103550.0,0.67953655]
[1747457681982,0.4953581,103560.0,103550.0,0.71633655]
[1747457682281,0.12774216,103560.0,103550.0,0.63722287]
[1747457682783,0.12774216,103560.0,103550.0,1.03692287]
[1747457683177,0.1223,103560.0,103550.0,1.03692287]
[1747457684789,0.1223,103560.0,103550.0,1.0512252]
[1747457684980,0.1223,103560.0,103550.0,1.09647364]
[1747457685889,0.1223,103560.0,103550.0,1.07105888]
[1747457686079,0.1223,103560.0,103550.0,1.13377364]
[1747457689181,0.1223,103560.0,103550.0,1.07105888]
[1747457689385,0.1223,103560.0,103550.0,1.13377364]
[1747457690283,0.12774216,103560.0,103550.0,1.13377364]
[1747457692394,0.1223,103560.0,103550.0,1.17717833]
[1747457692989,0.1223,103560.0,103550.0,0.96177833]
[1747457693186,0.1223,103560.0,103550.0,1.06859022]
[1747457693386,0.1223,103560.0,103550.0,1.26166702]
[1747457693581,0.1223,103560.0,103550.0,1.21826233]
[1747457695396,0.1223,103560.0,103550.0,1.18096233]
[1747457697188,0.1223,103560.0,103550.0,1.21826233]
[1747457697992,0.1223,103560.0,103550.0,1.26167047]
[1747457700795,0.1223,103560.0,103550.0,1.32438523]
[1747457701002,0.0829,103560.0,103550.0,1.32438523]
[1747457701201,0.17948,103560.0,103550.0,1.60438523]
[1747457702102,0.17948,103560.0,103550.0,1.42438523]
[1747457702294,0.17948,103560.0,103550.0,1.36167047]
[1747457702498,0.21828,103560.0,103550.0,2.45671047]
[1747457702702,0.21828,103560.0,103550.0,2.35559047]
[1747457703100,0.21828,103560.0,103550.0,2.46042479]
[1747457703502,0.22372216,103560.0,103550.0,2.46042479]
[1747457704208,0.22372216,103560.0,103550.0,0.93402479]
[1747457704502,0.22372216,103560.0,103550.0,1.29482479]
[1747457704703,0.22372216,103560.0,103550.0,0.93398479]
[1747457705007,0.22372216,103560.0,103550.0,1.34751362]
[1747457705701,0.22372216,103560.0,103550.0,1.38691362]
[1747457706608,0.22372216,103560.0,103550.0,1.29701022]
[1747457709703,0.22372216,103560.0,103550.0,1.34222171]
[1747457710308,0.22372216,103560.0,103550.0,0.98142171]
[1747457710511,0.22372216,103560.0,103550.0,1.34222171]
[1747457712610,0.21828,103560.0,103550.0,1.38122171]
[1747457714306,0.21828,103560.0,103550.0,1.44393647]
[1747457714506,0.21828,103560.0,103550.0,1.41850695]
[1747457714811,0.21828,103560.0,103550.0,1.48122171]
[1747457716010,0.21828,103560.0,103550.0,1.54393647]
[1747457716214,0.21828,103560.0,103550.0,1.72393647]
[1747457716615,0.21828,103560.0,103550.0,1.66122171]
[1747457717113,0.21828,103560.0,103550.0,1.48122171]
[1747457717315,0.21828,103560.0,103550.0,1.43601022]
[1747457717710,0.22372216,103560.0,103550.0,1.43601022]
[1747457718210,0.22372216,103560.0,103550.0,1.37329546]
[1747457718510,0.22372216,103560.0,103550.0,0.99253022]
[1747457718815,0.22372216,103560.0,103550.0,1.33921022]
[1747457721606,0.22372216,103560.0,103550.0,1.43921022]
[1747457721805,0.22372216,103560.0,103550.0,1.50192498]
[1747457722614,0.17948,103560.0,103550.0,1.50192498]
[1747457724212,0.17948,103560.0,103550.0,1.77849202]
[1747457725020,0.15381007,103560.0,103550.0,1.77849202]
[1747457725717,0.15925223,103560.0,103550.0,1.77849202]
[1747457726719,0.15381007,103560.0,103550.0,1.77849202]
[1747457728318,0.15381007,103560.0,103550.0,1.86839542]
[1747457729017,0.15381007,103560.0,103550.0,1.90524749]
[1747457730119,0.15381007,103560.0,103550.0,1.72524749]
[1747457730429,0.15381007,103560.0,103550.0,1.36444749]
[1747457730630,0.15381007,103560.0,103550.0,2.08604749]
[1747457731031,0.11361007,103560.0,103550.0,2.04664749]
[1747457731233,0.11361007,103560.0,103550.0,2.22664749]
[1747457732128,0.11361007,103560.0,103550.0,2.04664749]
[1747457732431,0.09858,103560.0,103550.0,1.97084749]
[1747457735138,0.09858,103560.0,103550.0,1.80013797]
[1747457735325,0.09858,103560.0,103550.0,2.08841273]
[1747457735933,0.10402216,103560.0,103550.0,2.02823337]
[1747457736181,0.10402216,103560.0,103550.0,1.84823337]
[1747457736375,0.10402216,103560.0,103550.0,1.91094813]
[1747457736836,0.09858,103560.0,103550.0,1.18934813]
[1747457737038,0.09858,103560.0,103550.0,1.91094813]
[1747457737431,0.09858,103560.0,103550.0,1.84823337]
[1747457737837,0.10402216,103560.0,103550.0,1.84823337]
[1747457740041,0.10402216,103560.0,103550.0,1.78551861]
[1747457740341,0.10402216,103560.0,103550.0,1.84823337]
[1747457740845,0.09858,103560.0,103550.0,1.84823337]
[1747457741742,0.09858,103560.0,103550.0,1.86040786]
[1747457744944,0.09858,103560.0,103550.0,1.7976931]
[1747457745145,0.09858,103560.0,103550.0,1.86040786]
[1747457745943,0.09858,103560.0,103550.0,1.85840786]
[1747457746246,0.0742,103560.0,103550.0,1.85840786]
[1747457748542,0.0742,103560.0,103550.0,1.8603392]
[1747457750746,0.0742,103560.0,103550.0,1.81131264]
[1747457754442,0.0742,103560.0,103550.0,1.8740274]
[1747457755952,0.0742,103560.0,103550.0,1.92305396]
[1747457756850,0.04342398,103560.0,103550.0,1.92305396]
[1747457757051,0.11160208,103580.0,103570.0,0.1930396]
[1747457757246,0.11160208,103580.0,103570.0,1.06011436]
[1747457757452,0.11160208,103580.0,103570.0,1.1035225]
[1747457757955,0.14596589,103590.0,103580.0,0.1930209]
[1747457758143,0.14596589,103590.0,103580.0,1.81753856]